Cogmind - Beta 17.1 @@@ ROGUE MODE // 2026.09.16 @ 19:59:56 Player: Boxplot Result: Destroyed by G-73 Enforcer with Heavy Laser Performance ------------- Evolutions (9) 4500 Regions Visited (25) 5000 Robots Destroyed (425) 2125 Value Destroyed (24817) 24817 Prototype IDs (74) 1480 Alien Tech Used (10) 2000 Bonus (23715) 23715 TOTAL SCORE: 63637 Bonus ------- Triggered High Security 1000 High Alert Combat Kills 8105 Follower Combat Kills 1052 Registered with UFD 300 Met Zhirov 300 Met Warlord at Base 500 MAIN.C Attacked Warlord 500 Warlord Defense Kills 1010 Used Core Reset Matrix 3000 Scanned by Researcher 500 Destroyed MAIN.C Guards 500 Met MAIN.C 5000 Destroyed MAIN.C Shell 5000 Friendly Fire -3052 Cogmind --------- Core Integrity 0/1600 Matter 300/300 Energy 13/100 System Corruption 0% +Membrane Temperature Cool (9) +ITN Movement Core (1650) Ox32 Location -1/Command Parts ------- > --- POWER (2) -------- (None) > --- PROPULSION (6) --- (None) > --- UTILITY (13) ----- Huge Storage Unit Core Analyzer Experimental Focal Shield AEGIS Remote Shield > --- WEAPON (4) ------- (None) > --- INVENTORY (25) --- Biometal Heavy Treads Experimental Coolant Injector Advanced Matter Compressor (400) Seismic Detector Experimental Utility Shielding Advanced Force Field Advanced Force Field Advanced Component Analysis Suite Peak State ------------ > --- POWER ------------ Vortex Chain Reactor > --- PROPULSION ------- Biometal Heavy Treads Experimental Biometal Heavy Treads Experimental Biometal Heavy Treads > --- UTILITY ---------- Experimental Thermal Generator Experimental Coolant Injector Huge Storage Unit Weapon Mount Core Analyzer Experimental Armor Integrity Analyzer Precision Energy Filter Quantum Capacitor Heavy Regenerative Plating Experimental Focal Shield AEGIS Remote Shield > --- WEAPON ----------- Vortex Shotgun Cooled Nova Cannon Core Cannon > --- INVENTORY -------- Light Quantum Reactor Biometal Heavy Treads Biometal Heavy Treads Biometal Heavy Treads Experimental Coolant Injector Experimental Energy Well Advanced Matter Compressor Seismic Detector Precision Energy Filter Improved Power Shielding Experimental Utility Shielding Advanced Force Field Advanced Force Field Advanced Component Analysis Suite Transdimensional Reconstructor Vortex Shotgun Heavy Disruptor Cannon [Rating: 238] Favorites ----------- Power Vortex Chain Reactor Engine Improved Deuterium Engine Power Core Neutrino Core Reactor Vortex Chain Reactor Propulsion Biometal Heavy Treads Treads Biometal Heavy Treads Leg Enhanced Biometal Leg Wheel Maxwheels Hover Unit Combat Linear Gravjet Flight Unit Improved Diametric Drive Utility Advanced Hacking Suite Device Long-range Sensor Array Storage Huge Storage Unit Processor Core Analyzer Hackware Advanced Hacking Suite Protection Experimental Utility Shielding Weapon Gatling Laser Energy Gun Gatling Laser Energy Cannon Compact HERF Cannon Ballistic Gun Helical Railgun Ballistic Cannon Omega Cannon Launcher Mini Smartbomb Launcher Slashing Weapon Molecular Scythe Special Melee Weapon Advanced Datajack Build | -11 -10 -10 -7 -7 -5 -5 -5 -5 -5 -5 -4 -4 -4 -4 -4 -4 -4 -3 -3 -3 -2 -2 -2 -1 -1 ------- Run | Yrd Mat Sub Rec Scr Fac Was Fac Upp Upp War Pro Fac Was Fac Upp Upp Zhi Pro Res Tes Res Qua Sec Acc Com Slots Evolved 18 | . . . . . 10 . . . . . . 2 . . . . . . 2 . 2 . . 2 . Power 1 | . . . . . . . . . . . . . . . . . . . 1 . . . . . . Propulsion 4 | . . . . . 4 . . . . . . . . . . . . . . . . . . . . Utility 11 | . . . . . 6 . . . . . . 2 . . . . . . . . 1 . . 2 . Weapon 2 | . . . . . . . . . . . . . . . . . . . 1 . 1 . . . . Parts Attached 225 | 6 12 17 10 9 8 7 17 2 1 13 1 23 . 13 . 1 2 3 10 20 8 17 4 7 14 Power 19 | 1 3 2 1 2 1 . . . . 2 . 1 . 2 . 1 1 . 1 . . . . . 1 Engine 9 | 1 3 2 1 2 . . . . . . . . . . . . . . . . . . . . . Core 3 | . . . . . 1 . . . . 1 . 1 . . . . . . . . . . . . . Reactor 7 | . . . . . . . . . . 1 . . . 2 . 1 1 . 1 . . . . . 1 Propulsion 50 | 2 3 7 1 2 1 1 1 . . 4 . 6 . 1 . . . . 1 7 5 2 1 3 2 Treads 25 | 1 1 4 . . . 1 1 . . . . . . . . . . . . 4 5 2 1 3 2 Leg 1 | . . . . . . . . . . 1 . . . . . . . . . . . . . . . Wheel 9 | 1 2 3 1 1 1 . . . . . . . . . . . . . . . . . . . . Hover 14 | . . . . 1 . . . . . 2 . 6 . 1 . . . . 1 3 . . . . . Flight 1 | . . . . . . . . . . 1 . . . . . . . . . . . . . . . Utility 91 | 1 4 . 2 3 5 2 14 1 . 2 1 11 . 7 . . 1 2 7 8 . 11 1 1 7 Device 46 | . 2 . . 1 4 2 6 . . 1 1 4 . 4 . . . 1 2 5 . 7 1 1 4 Storage 6 | 1 2 . . . . . 1 . . . . . . . . . 1 . . 1 . . . . . Processor 10 | . . . . . 1 . 2 . . 1 . 1 . 2 . . . . . . . 2 . . 1 Hackware 18 | . . . . 1 . . 5 . . . . 5 . 1 . . . 1 4 1 . . . . . Protection 11 | . . . 2 1 . . . 1 . . . 1 . . . . . . 1 1 . 2 . . 2 Artifact . | . . . . . . . . . . . . . . . . . . . . . . . . . . Weapon 65 | 2 2 8 6 2 1 4 2 1 1 5 . 5 . 3 . . . 1 1 5 3 4 2 3 4 Energy Gun 13 | . . 1 3 1 . . . . 1 1 . 1 . . . . . . . . 1 1 1 2 . Energy Cannon 20 | . . 1 . . . . 1 . . 1 . 2 . . . . . . 1 4 2 2 1 1 4 Ballistic Gun 20 | 2 2 4 3 . 1 . 1 1 . 2 . 1 . 2 . . . . . . . 1 . . . Ballistic Cannon 3 | . . 1 . . . . . . . . . . . 1 . . . . . 1 . . . . . Launcher 7 | . . 1 . 1 . 3 . . . 1 . . . . . . . 1 . . . . . . . Special Weapon . | . . . . . . . . . . . . . . . . . . . . . . . . . . Impact Weapon . | . . . . . . . . . . . . . . . . . . . . . . . . . . Slashing Weapon 1 | . . . . . . 1 . . . . . . . . . . . . . . . . . . . Piercing Weapon . | . . . . . . . . . . . . . . . . . . . . . . . . . . Special Melee Weapon 1 | . . . . . . . . . . . . 1 . . . . . . . . . . . . . Unidentified Prototypes 29 | . . . . . . 4 . . . 7 . . . . . . 3 . . 5 . 5 3 . 2 Corrupted Parts 2 | . . . . 1 . . 1 . . . . . . . . . . . . . . . . . . System Corruption 8 | . . . . 4 . . 4 . . . . . . . . . . . . . . . . . . Parts Lost 54 | . . 11 1 . . . 1 . . . 2 4 . 3 . 1 . . . 2 . . . 6 23 Power 5 | . . 3 . . . . . . . . . . . . . . . . . . . . . . 2 Propulsion 10 | . . 4 . . . . . . . . . . . . . 1 . . . . . . . . 5 Utility 19 | . . . 1 . . . 1 . . . 2 2 . . . . . . . 1 . . . 1 11 Weapon 20 | . . 4 . . . . . . . . . 2 . 3 . . . . . 1 . . . 5 5 Highest Loss Streak 18 | . . 6 1 . . . 1 . . . 2 1 . 2 . 1 . . . 1 . . . 4 18 To Critical Strikes . | . . . . . . . . . . . . . . . . . . . . . . . . . . Average Backups 19 | 3 14 16 16 16 17 19 22 25 25 24 24 21 19 18 18 19 19 19 18 21 21 21 22 20 19 Power 1 | . 1 1 1 1 1 2 2 2 2 2 2 1 1 1 1 1 1 1 1 . . . . . . Propulsion 2 | 1 5 5 5 2 3 4 7 7 7 5 5 3 . . . . . . . . . . . . 2 Utility 9 | . 1 3 6 9 7 6 7 9 9 10 10 8 12 12 13 14 13 13 12 13 12 12 12 9 9 Weapon 5 | . 5 5 4 2 3 5 5 6 5 5 6 7 6 5 4 4 4 4 4 5 7 7 7 6 4 Tool/Special . | . . . . . . . . . . . . . . . . . . . . . . . . . . Unused Backups 78 | . 4 3 3 4 1 7 17 . . 12 . 5 . 1 . . 1 . . 4 2 8 . . 6 Power 8 | . 1 . . . 1 . 4 . . 1 . 1 . . . . . . . . . . . . . Propulsion 19 | . 1 . 1 . . 3 5 . . 5 . 1 . . . . . . . 1 . 2 . . . Utility 25 | . . . . 2 . 2 5 . . 5 . . . . . . 1 . . 3 1 3 . . 3 Weapon 23 | . 2 3 2 1 . 2 3 . . . . 3 . 1 . . . . . . 1 2 . . 3 Tool/Special 3 | . . . . 1 . . . . . 1 . . . . . . . . . . . 1 . . . Average Slot Usage (%) 85 | . 97 98 99 98 71 79 77 78 78 80 83 92 100 98 99 94 89 93 87 78 74 76 74 75 71 Engine 3 | . 14 13 14 13 3 . . . . . . . . . . . . . . . . . . . . Core 1 | . . . . . 1 5 5 5 5 4 . 2 5 3 . . . . . . . . . . . Reactor 2 | . . . . . . . . . . . 5 2 . 1 5 5 5 5 4 4 4 4 4 4 4 Treads 8 | . 14 14 13 14 5 5 4 5 5 2 . . . . . . . . . 5 14 13 14 12 11 Wheel 4 | . 14 13 14 13 8 6 5 5 5 5 5 2 . . . . . . . . . . . . . Hover 6 | . . . . . . . . . . 5 10 20 31 31 31 26 26 26 23 14 . . . . . Device 15 | . 11 14 3 . 17 21 16 9 10 10 11 14 15 15 15 15 14 10 7 17 22 24 25 32 29 Storage 6 | . 14 14 14 13 5 5 6 5 5 5 5 4 5 5 5 5 5 5 4 4 4 4 4 4 4 Processor 6 | . . . . . 2 5 8 10 10 10 10 12 10 10 10 10 10 10 9 9 8 8 8 8 7 Hackware 6 | . . . . . 5 5 5 15 15 15 13 13 15 18 21 21 21 25 21 9 3 . . . . Protection 3 | . . . 9 13 2 5 3 . . . . 3 5 1 . . . . 1 . 4 5 4 2 3 Energy Gun 6 | . . 5 13 24 10 10 10 10 13 13 10 2 . . . . . . . . 2 2 . 1 . Energy Cannon 3 | . . 2 . . . . 4 3 . . . 2 5 1 . . . . 3 4 5 9 11 8 8 Ballistic Gun 4 | . 28 14 10 2 6 9 5 6 5 . 10 7 5 5 . . . . . . . 2 . . . Launcher 1 | . . 3 3 . . . . . . 5 . . . . 4 5 5 4 4 . . . . . . Peak Build Rating 238 | 6 11 17 26 30 97 110 122 121 118 141 144 155 129 132 123 123 117 123 152 184 201 207 212 232 238 Average Rating 123 | 5 9 14 21 27 76 103 113 117 117 125 140 138 129 124 122 118 111 115 138 169 194 199 203 217 218 On Entrance 112 | . 6 11 17 26 29 96 110 117 117 118 141 140 129 129 116 123 118 117 115 151 177 201 199 202 223 Avg Prop Armor Cover (%) 9 | 13 12 13 11 10 8 7 10 12 12 9 6 5 . . . . . . . 2 . 7 . . . Naked Turns . | . . . . . . . . . . . . . . . . . . . . . . . . . . Heaviest Build 211 | 13 49 56 67 68 84 84 168 127 114 125 123 131 78 79 75 75 72 73 102 171 185 196 191 205 211 Greatest Support 245 | 16 16 20 36 16 42 42 30 30 30 30 30 81 81 87 80 80 68 68 84 205 225 225 235 235 245 Greatest Overweight (x) 25 | . 4 5 4 5 5 2 5 4 3 4 4 25 . . . 1 1 1 1 1 . 1 . 1 . Average Overweight (x) 1 | . 1 2 3 3 1 1 3 3 3 3 3 1 . . . . . . . . . . . . . Largest Inventory Capacity 25 | 8 20 20 20 20 20 20 25 25 25 25 25 25 20 20 20 20 20 20 20 25 25 25 25 25 25 Average Capacity 22 | 7 15 20 20 19 20 20 23 25 25 25 25 22 20 20 20 20 20 20 20 22 25 25 25 25 25 Most Carried 25 | 6 20 20 20 20 20 20 25 25 25 25 25 25 20 20 20 20 20 20 20 25 25 25 25 25 25 Average Carried 21 | 3 14 17 19 19 17 19 22 25 24 24 24 22 20 19 19 20 19 20 19 22 24 24 24 23 22 Final Capacity 25 | 8 20 20 20 20 20 20 25 25 25 25 25 20 20 20 20 20 20 20 20 25 25 25 25 25 25 Final Carried 25 | 6 20 18 20 20 20 20 25 25 25 25 25 20 20 20 20 20 20 20 20 25 25 25 25 25 9 Class Distribution -------------------- 12% | Commander-Mutant 11% | Machinist-Tank 11% | Hacker-Skirmisher 11% | Hacker-Mutant 9% | Mutant 7% | Alien-Tank 7% | Machinist-Gunner 6% | Scavenger-Tank 3% | Scavenger-Mutant 3% | Hacker-Gunner 3% | Scavenger-Skirmisher Dominant Class ---------------- Mutant | -10/Materials Scavenger-Mutant | -10/Subcaves Mutant | -7/Recycling Commander-Mutant | -7/Scraptown Scavenger-Skirmisher | -5/Factory Scavenger-Tank | -5/Waste Scavenger-Tank | -5/Factory Hacker-Skirmisher | -5/Upper Caves Hacker-Skirmisher | -5/Upper Caves Commander-Skirmisher | -5/Warlord Hacker-Skirmisher | -4/Proximity Caves Hacker-Scout | -4/Factory Hacker-Mutant | -4/Waste Hacker-Mutant | -4/Factory Hacker-Mutant | -4/Upper Caves Hacker-Mutant | -4/Upper Caves Hacker-Mutant | -4/Zhirov Hacker-Mutant | -3/Proximity Caves Hacker-Skirmisher | -3/Research Hacker-Gunner | -3/Testing Machinist-Gunner | -2/Research Machinist-Tank | -2/Quarantine Alien-Tank | -2/Section 7 Alien-Tank | -1/Access Alien-Gunner | -1/Command Resources | -11 -10 -10 -7 -7 -5 -5 -5 -5 -5 -5 -4 -4 -4 -4 -4 -4 -4 -3 -3 -3 -2 -2 -2 -1 -1 ----------- Run | Yrd Mat Sub Rec Scr Fac Was Fac Upp Upp War Pro Fac Was Fac Upp Upp Zhi Pro Res Tes Res Qua Sec Acc Com Matter Collected 11592 | 320 338 373 298 130 307 253 513 148 335 635 225 1055 . 562 388 147 . 437 447 1408 1860 648 364 214 187 Remotely . | . . . . . . . . . . . . . . . . . . . . . . . . . . Salvage Created 24322 | 193 346 312 576 . 465 862 972 161 500 255 248 1267 . 780 69 66 . 334 760 1809 2912 1463 3590 2324 4058 Parts 967 | 5 23 19 20 . 18 32 44 9 14 6 9 74 . 40 . 3 . 7 37 56 100 84 154 81 132 Haulers Intercepted 4 | . 2 . . . . . 1 . . . . . . . . . . . . . . . . 1 . Recyclers Shooed 16 | . . . 6 . . . . . . . . 1 . 2 . . . . . 4 1 . 1 . 1 Parts Field Recycled . | . . . . . . . . . . . . . . . . . . . . . . . . . . Retrieved Matter . | . . . . . . . . . . . . . . . . . . . . . . . . . . Parts Self-Destructed 46 | . . 12 . . . . . 4 12 . 10 . . . 4 2 . 2 . . . . . . . Prevented . | . . . . . . . . . . . . . . . . . . . . . . . . . . Parts Restored . | . . . . . . . . . . . . . . . . . . . . . . . . . . Kills | -11 -10 -10 -7 -7 -5 -5 -5 -5 -5 -5 -4 -4 -4 -4 -4 -4 -4 -3 -3 -3 -2 -2 -2 -1 -1 ------- Run | Yrd Mat Sub Rec Scr Fac Was Fac Upp Upp War Pro Fac Was Fac Upp Upp Zhi Pro Res Tes Res Qua Sec Acc Com Combat Hostiles Destroyed 316 | . 5 11 4 . 8 . 10 2 4 8 4 16 . 13 . 7 . 5 8 20 28 21 40 34 68 Guns 63 | . 5 7 4 . 7 . 7 2 . 3 4 14 . 2 . . . 1 1 . . 2 . 2 2 Cannons 117 | . . 4 . . . . 2 . . . . 1 . 4 . 1 . . 3 14 13 7 20 11 37 AOE 77 | . . . . . 1 . . . 4 5 . 1 . 6 . 6 . 4 3 3 . 3 6 9 26 Classes Destroyed 28 | 2 6 1 2 . 3 2 1 1 . 4 . 1 . . . . . . . . 1 . 2 . 2 Worker 15 | . . . . . 1 . . . . . . 3 . 1 . . . . 1 1 2 . 3 . 3 Builder 13 | . 1 . 1 . . . . . . . . . . 1 . . . . . . 4 . 4 2 . Tunneler 7 | 4 . . . . . . 1 . . . . 1 . . . . . . 1 . . . . . . Hauler 4 | . 2 . . . . . 1 . . . . . . . . . . . . . . . . 1 . Recycler 26 | 1 1 . 2 . . . 1 . . . . 1 . 2 . . . . 2 4 4 . 2 . 6 Mechanic 5 | . . . . . . . . . . . . . . . . . . . . . . . 2 1 2 Operator 5 | . 1 . . . . . . . . . . 1 . . . . . . . . 1 . 2 . . Drone 3 | . . . . . . . . . . . . 1 . . . . . 2 . . . . . . . Watcher 23 | . 1 . . . . . 2 . . . . 1 . . . . . . 1 3 6 3 4 2 . Swarmer 51 | . 3 3 . . . . . . 4 . 1 . . 5 . 5 . . 4 . . 5 4 4 13 Saboteur 5 | . . . . . . . . . . 1 . . . . . . . . . . . . . . 4 Grunt 72 | . 2 . . . 4 . . . . 3 1 3 . . . . . 1 . 9 8 1 11 7 22 Brawler 7 | . . . . . . . . . . 1 . 1 . . . . . 1 . . . . . . 4 Duelist 7 | . . . . . 1 . . . . . 1 . . . . . . . . . . . . 3 2 Protector 5 | . . . 1 . . . . . . . . . . . . . . . . . . . . 1 3 Sentry 24 | . . . 3 . 1 . 5 . . . 1 2 . . . . . 1 1 . 3 . 4 2 1 Demolisher 1 | . . . . . . . 1 . . . . . . . . . . . . . . . . . . Specialist 1 | . . . . . . . . . . 1 . . . . . . . . . . . . . . . Hunter 33 | . . . . . 2 . . 1 . 1 . . . 4 . . . . 2 2 4 2 6 7 2 Programmer 74 | . . . . . . . 4 . . . . 9 . 4 . 2 . . 1 9 11 4 11 9 10 Heavy 2 | . . . . . . . . . . . . . . . . . . . . . . . 1 1 . Behemoth 4 | . . . . . . . . . . . . . . . . . . . . . 2 . 1 . 1 Quarantine Guard 9 | . . . . . . . . . . . . . . . . . . . . . . 9 . . . S7 Guard 2 | . . . . . . . . . . . . . . . . . . . . . . . 2 . . M Guard 2 | . . . . . . . . . . . . . . . . . . . . . . . . . 2 Combat Programmer 2 | . . . . . . . . . . . . . . . . . . . . . . . . . 2 Investigator 1 | . . . . . . . . . . . . . . . . . . . . . . . . . 1 Striker 1 | . . . . . . . . . . . . . . . . . . . . . . . . . 1 Executioner 1 | . . . . . . . . . . 1 . . . . . . . . . . . . . . . Subdweller 8 | . . 8 . . . . . . . . . . . . . . . . . . . . . . . Decomposer 1 | . . . . . . . . 1 . . . . . . . . . . . . . . . . . Tinkerer 1 | . . . . . . . . . . 1 . . . . . . . . . . . . . . . Wasp 3 | . . . . . . 2 1 . . . . . . . . . . . . . . . . . . Savage 2 | . . . . . . 1 . . 1 . . . . . . . . . . . . . . . . Martyr 4 | . . . . . . 4 . . . . . . . . . . . . . . . . . . . Mutant 1 | . . . . . . . . 1 . . . . . . . . . . . . . . . . . Sapper 2 | . . . . . . . . . . . . . . . . . . 2 . . . . . . . Best Kill Streak 29 | 5 3 3 2 . 6 . 3 1 4 4 4 4 . 5 . 5 . 2 6 5 11 3 9 10 29 Combat Bots Only 24 | . 3 3 1 . 5 . 3 1 4 4 4 3 . 5 . 5 . 2 4 5 6 3 5 7 24 Max Kills in Single Turn 4 | 1 1 1 1 . 2 1 2 1 2 2 1 2 . 3 . 3 . 2 3 2 2 3 4 4 4 Gunslinging . | . . . . . . . . . . . . . . . . . . . . . . . . . . Exploded 4 | . . . . . 1 . . . 2 2 . 1 . 3 . 3 . 2 2 2 . 2 2 3 4 Melee . | . . . . . . . . . . . . . . . . . . . . . . . . . . Uniques/NPCs Destroyed 1 | . . . . . . . . . . . . . . . . . . . . . . . . . 1 MAIN.C Shell (-1/Command) Combat | -11 -10 -10 -7 -7 -5 -5 -5 -5 -5 -5 -4 -4 -4 -4 -4 -4 -4 -3 -3 -3 -2 -2 -2 -1 -1 -------- Run | Yrd Mat Sub Rec Scr Fac Was Fac Upp Upp War Pro Fac Was Fac Upp Upp Zhi Pro Res Tes Res Qua Sec Acc Com Hostile Shots Fired 1795 | . 32 99 69 . 28 . 23 16 . 5 14 71 . 135 . 16 . 3 23 85 106 94 152 178 646 Missed 492 | . 5 29 29 . 5 . 8 4 . 1 6 28 . 50 . 4 . . 7 35 38 25 52 46 120 Hits 1303 | . 27 70 40 . 23 . 15 12 . 4 8 43 . 85 . 12 . 3 16 50 68 69 100 132 526 Melee 3 | . . . . . . . . . . . 1 . . . . . . . . . . . . 1 1 Projectile 1300 | . 27 70 40 . 23 . 15 12 . 4 7 43 . 85 . 12 . 3 16 50 68 69 100 131 525 AOE 11 | . . . . . . . 4 . . 1 . . . . . . . . . . . . . . 6 Critical Strikes 77 | . . 2 . . 3 . 2 1 . 1 . 4 . 5 . . . . . 6 6 5 5 9 28 Actively Blocked 4 | . . . . . . . . . . . . . . . . . . . . . . 1 . 1 2 Part Disruptions 12 | . . . . . . . . . . . . 1 . . . . . . . . 3 . 1 . 7 Damage Taken 18182 | . 258 1377 285 . 463 . 444 231 . 91 180 980 . 1230 . 215 . 70 273 774 1021 860 951 1612 6867 Core 1438 | . 18 174 55 . 35 . . 17 . 32 19 64 . 182 . 60 . . . 140 37 49 41 48 467 Absorbed by Shields 8548 | . . . . . . . . . . . . . . 5 . . . . . 150 264 834 929 1184 5182 Reduced by Siege Mode 625 | . . . . . . . . . . . . . . . . . . . . . 35 . 25 3 562 Redirected to Shielding 482 | . . . . . . . . . . . . . . . . . . . . . 64 39 86 108 185 Ignored by Resistances 5329 | . . . 13 . . . . . . . . . . 269 . . . 18 . 122 287 715 637 839 2429 Regen/Repaired (Parts) 3551 | . . . . 338 . . . . . 216 . . . 25 . . . . . . . . 68 . 2904 Core Remaining (%) 73 | 100 . . . 1 . . . . . . 89 . . . . . . 73 . 89 . . 88 . . Volleys Fired 1323 | 15 47 69 40 . 13 30 55 27 28 30 18 86 . 67 7 9 . 12 51 104 112 103 143 109 148 Largest 4 | 2 2 2 2 . 4 4 4 4 4 4 2 4 . 2 1 1 . 2 2 2 2 2 2 2 3 Hottest 450 | 40 40 110 113 . 223 223 280 280 276 241 76 236 . 143 47 80 . 107 141 181 200 214 300 300 450 Shots Fired 1748 | 30 94 117 50 . 52 43 110 41 46 47 37 149 1 87 7 10 . 15 53 105 115 108 148 113 170 Gun 820 | 30 94 82 50 . 52 43 59 31 41 33 37 117 1 42 . . . 2 1 . 1 22 1 40 41 Cannon 857 | . . 34 . . . . 51 10 . 1 . 31 . 42 7 3 . 4 49 102 107 86 139 62 129 Launcher 71 | . . 1 . . . . . . 5 13 . 1 . 3 . 7 . 9 3 3 7 . 8 11 . Special . | . . . . . . . . . . . . . . . . . . . . . . . . . . Kinetic 746 | 30 94 100 33 . 26 25 22 21 16 18 36 108 1 65 7 3 . 4 26 40 50 21 . . . Thermal 541 | . . 17 17 . 26 18 88 20 25 15 1 40 . 19 . . . . . . 5 36 53 55 106 Explosive 35 | . . . . . . . . . 5 13 . 1 . 3 . 7 . 3 3 . . . . . . Electromagnetic 381 | . . . . . . . . . . . . . . . . . . 6 23 65 60 51 95 58 23 Entropic 45 | . . . . . . . . . . 1 . . . . . . . 2 1 . . . . . 41 Robot Hit Streak 43 | 6 13 19 18 . 10 21 19 8 9 7 9 16 2 11 1 3 . 6 5 32 30 23 37 13 43 Robot Miss Streak 5 | 2 4 3 2 . 3 3 5 3 4 5 2 5 . 3 1 . . 1 2 2 2 2 5 3 3 Penetration Max 2 | . . . 2 . 1 1 2 1 . 1 1 1 . 1 . . . . . . . . . . 2 Secondary Targets 8 | . 1 2 . . 1 . 1 . . . 2 1 . . . . . . . . . . . . . Max Gunslinging Chain 1 | . 1 1 . . 1 . 1 . . . 1 1 . . . . . . . . . . . . . Capacitor 557 | . . . . . . . . . . . . . . . . . . . 11 55 55 85 135 102 114 Shots Hit Robots 1036 | 18 58 70 36 . 35 37 52 15 28 19 17 85 1 36 1 2 . 5 17 57 75 60 98 70 144 Core Hits 703 | 5 20 20 24 . 28 27 40 15 21 30 8 46 . 27 1 11 . 9 16 35 36 28 66 70 120 Critical Kills 38 | . . . 5 . . 6 2 . 2 1 1 2 . 2 . . . . . . . 2 1 2 12 Critical Parts Destroyed 58 | 1 . . 6 . 1 5 2 2 3 1 . 1 . . . . . . . . . 5 . 1 30 Critical Strikes 118 | 1 . 1 11 . 1 12 4 2 7 2 2 3 . 3 . . . . 2 3 6 9 3 3 43 Meltdown 6 | . . . . . . . 1 . . . . . . 1 . . . . . . . . 1 2 1 Destroy 95 | 1 . 1 11 . 1 12 3 2 7 2 2 3 . 1 . . . . . . . 8 . 1 40 Blast 9 | . . . . . . . . . . . . . . 1 . . . . . 2 6 . . . . Corrupt 6 | . . . . . . . . . . . . . . . . . . . 2 1 . 1 2 . . Detonate 2 | . . . . . . . . . . . . . . . . . . . . . . . . . 2 Melee Attacks 1 | . . . . . . . . . . . . 1 . . . . . . . . . . . . . Impact . | . . . . . . . . . . . . . . . . . . . . . . . . . . Slashing . | . . . . . . . . . . . . . . . . . . . . . . . . . . Piercing . | . . . . . . . . . . . . . . . . . . . . . . . . . . Sneak Attacks 1 | . . . . . . . . . . . . 1 . . . . . . . . . . . . . Combat Hostiles . | . . . . . . . . . . . . . . . . . . . . . . . . . . Follow-up Attacks . | . . . . . . . . . . . . . . . . . . . . . . . . . . Damage Inflicted 73573 | 187 615 1016 542 . 1058 606 1541 409 998 2219 530 2869 . 2137 37 898 . 958 1134 4173 6255 2910 8054 8740 25687 Guns 13922 | 187 615 630 542 . 746 606 1247 342 572 778 530 2525 . 578 . . . 137 55 . . 110 . 769 2953 Cannons 38774 | . . 386 . . . . 294 67 . . . 196 . 486 37 36 . 66 650 3638 5297 2598 5736 4544 14743 Explosions 20870 | . . . . . 312 . . . 426 1441 . 148 . 1073 . 862 . 755 429 535 957 202 2318 3421 7991 Melee . | . . . . . . . . . . . . . . . . . . . . . . . . . . Ramming 7 | . . . . . . . . . . . . . . . . . . . . . 1 . . 6 . Kinetic 12422 | 187 615 795 265 . 278 217 418 174 92 534 530 2245 . 851 37 36 . 66 . 1891 3081 110 . . . Thermal 38676 | . . 221 277 . 468 389 1123 235 480 244 . 476 . 671 . . . . . 110 188 1123 4089 6398 22184 Explosive 5014 | . . . . . 312 . . . 426 1441 . 148 . 529 . 862 . 359 429 . . . 355 153 . Electromagnetic 14309 | . . . . . . . . . . . . . . 86 . . . 396 650 2172 2985 1677 3610 2183 550 Impact . | . . . . . . . . . . . . . . . . . . . . . . . . . . Slashing . | . . . . . . . . . . . . . . . . . . . . . . . . . . Piercing . | . . . . . . . . . . . . . . . . . . . . . . . . . . Entropic 3145 | . . . . . . . . . . . . . . . . . . 137 55 . . . . . 2953 Highest Corruption 20 | . . . 1 4 . . 4 . . 1 1 10 20 20 20 20 20 20 . 2 11 11 1 . . Average Corruption 8 | . . . 1 4 . . 3 . . 1 1 9 18 20 20 20 20 20 . 1 8 5 1 . . Corruption Purged 11 | . . . . . . . 4 . . . . . . . . . . . . . . 7 . . . Corruption Blocked . | . . . . . . . . . . . . . . . . . . . . . . . . . . Effects 317 | . . . 8 . . . 4 . . 1 9 45 6 46 19 43 5 22 . 5 51 40 13 . . Message Errors 78 | . . . 2 . . . 1 . . . 2 10 2 10 4 9 1 10 . 2 14 7 4 . . Matter Fused 59 | . . . 3 . . . 1 . . . 2 9 . 8 5 4 1 1 . 2 14 8 1 . . Heat Flow Errors 43 | . . . . . . . . . . 1 . 4 . 7 4 8 1 3 . . 7 6 2 . . Energy Discharges 41 | . . . 1 . . . 1 . . . 2 8 2 4 2 5 1 . . 1 5 6 3 . . Parts Rejected 2 | . . . . . . . . . . . . 1 . 1 . . . . . . . . . . . Parts Fused 3 | . . . . . . . . . . . . . . . . 1 . . . . 1 1 . . . Data Loss (minor) 40 | . . . . . . . . . . . 2 5 . 4 2 7 . 5 . . 7 6 2 . . Data Loss (major) 16 | . . . . . . . . . . . . 5 . 3 1 3 1 2 . . . 1 . . . Misfires 16 | . . . 1 . . . . . . . 1 . 1 3 . 2 . 1 . . 2 4 1 . . Alerts 9 | . . . 1 . . . . . . . . 1 . 2 1 3 . . . . . 1 . . . Misdirections 5 | . . . . . . . . . . . . 2 1 1 . . . . . . 1 . . . . Weapon Failures 5 | . . . . . . . 1 . . . . . . 3 . 1 . . . . . . . . . Overload Shots 2 | . . . . . . . . . . . . . . . . . . . . . . . . . 2 Overflow Damage 7345 | . . . . . 4 . 8 . . 32 . 41 . 189 . 19 . 46 46 503 779 250 1013 1471 2944 Projectiles 5479 | . . . . . . . 8 . . . . 10 . 44 . . . . 2 500 756 217 746 1084 2112 Explosions 1866 | . . . . . 4 . . . . 32 . 31 . 145 . 19 . 46 44 3 23 33 267 387 832 Melee . | . . . . . . . . . . . . . . . . . . . . . . . . . . Knockbacks 19 | . . 4 . . . . . . . . . . . 1 . . . . . 7 7 . . . . Impact . | . . . . . . . . . . . . . . . . . . . . . . . . . . Kinetic 19 | . . 4 . . . . . . . . . . . 1 . . . . . 7 7 . . . . Secondary . | . . . . . . . . . . . . . . . . . . . . . . . . . . Self-Inflicted Damage 832 | . . . . . . . . . . . . 82 . 15 . 19 . . 23 93 9 63 10 150 368 Shots 19 | . . . . . . . . . . . . 1 . 1 . 1 . . 1 2 1 1 1 5 5 Rammed 2 | . . . . . . . . . . . . . . . . . . . . . 1 . . 1 . Targets Rammed 2 | . . . . . . . . . . . . . . . . . . . . . 1 . . 1 . Kicked . | . . . . . . . . . . . . . . . . . . . . . . . . . . Crushed . | . . . . . . . . . . . . . . . . . . . . . . . . . . Highest Temperature 500 | . 12 348 135 . 234 33 338 334 328 310 14 272 . 500 194 203 175 198 330 408 202 405 290 198 273 Average Temperature 81 | . 6 169 37 . 57 22 97 115 65 73 10 74 . 65 74 68 38 53 81 87 67 94 87 91 119 Received Heat Transfer 3045 | . 84 857 90 . 108 . 9 36 . 39 18 110 . 48 . . . 9 . 93 283 36 273 66 886 Thermoelectric Energy+ 3168 | . . . . . . . . . . . . . . . . . . . . . . . 27 475 2666 Effects 23 | . . 1 . . . . 5 1 . . . . . 5 . . . . 1 3 . 7 . . . Shutdowns 1 | . . . . . . . . . . . . . . 1 . . . . . . . . . . . Energy Bleed 3 | . . . . . . . . . . . . . . . . . . . 1 . . 2 . . . Interference 15 | . . . . . . . 5 1 . . . . . 3 . . . . . 3 . 3 . . . Short Circuit 2 | . . 1 . . . . . . . . . . . . . . . . . . . 1 . . . Damage (minor) 2 | . . . . . . . . . . . . . . 1 . . . . . . . 1 . . . Siege Activations 9 | . . . . . . . . . . . . . . . . . . . . . 1 1 2 1 4 Total Turns 217 | . . . . . . . . . . . . . . . . . . . . . 17 2 37 5 156 Longest Duration 93 | . . . . . . . . . . . . . . . . . . . . . 17 2 33 5 93 Martial Activations . | . . . . . . . . . . . . . . . . . . . . . . . . . . Shielding Activations . | . . . . . . . . . . . . . . . . . . . . . . . . . . Robots Disrupted 3 | . . . . . . . . . . . . . . 1 . . . . . . . . . 2 . Combat Hostiles 2 | . . . . . . . . . . . . . . . . . . . . . . . . 2 . Robots Corrupted 57 | . . . . . . . . . . . . . . . . . . 1 1 4 17 10 13 10 1 Combat Hostiles 52 | . . . . . . . . . . . . . . . . . . . 1 3 15 9 13 10 1 Parts Fried 167 | . . . . . . . . . . . . . . . . . . 4 9 20 34 34 34 27 5 Impact Corruptions . | . . . . . . . . . . . . . . . . . . . . . . . . . . Robots Melted 7 | . . . . . . . 1 . . . . . . 1 . . . . . . . . 1 2 2 Combat Hostiles 7 | . . . . . . . 1 . . . . . . 1 . . . . . . . . 1 2 2 Parts Melted 27 | . . 1 . . 1 . 6 1 . . . 1 . . . . . . . . . . 4 2 11 Heat Transferred 22829 | . . 370 647 . 1075 900 2046 474 830 396 . 760 . 472 . . . . . 100 50 527 2391 3070 8721 Parts Sabotaged 1 | . . . . . . . . . . . . . . . . . . . . . . . . . 1 Parts Stolen . | . . . . . . . . . . . . . . . . . . . . . . . . . . Parts Stripped . | . . . . . . . . . . . . . . . . . . . . . . . . . . Power Chain Reactions 5 | . . . . . . . . . . . . . . . . . . 1 . 1 . . 1 2 . Alert | -11 -10 -10 -7 -7 -5 -5 -5 -5 -5 -5 -4 -4 -4 -4 -4 -4 -4 -3 -3 -3 -2 -2 -2 -1 -1 ------- Run | Yrd Mat Sub Rec Scr Fac Was Fac Upp Upp War Pro Fac Was Fac Upp Upp Zhi Pro Res Tes Res Qua Sec Acc Com Maximum Alert Level 5 | . . . . . 1 . 1 . . . . 2 . 2 . . . . . 1 2 2 4 5 5 Low Security (%) 51 | 100 100 . 100 . 93 100 71 . . . . 32 100 35 . . . . 100 76 65 12 . . . Level 1 22 | . . . . . 6 . 28 . . . . 48 . 32 . . . . . 23 11 54 27 . . Level 2 12 | . . . . . . . . . . . . 18 . 31 . . . . . . 23 33 25 . . Level 3 4 | . . . . . . . . . . . . . . . . . . . . . . . 17 56 . Level 4 5 | . . . . . . . . . . . . . . . . . . . . . . . 29 29 38 Level 5 . | . . . . . . . . . . . . . . . . . . . . . . . . . 5 High Security 3 | . . . . . . . . . . . . . . . . . . . . . . . . 14 56 Max Security . | . . . . . . . . . . . . . . . . . . . . . . . . . . Peak Influence 2987 | 10 109 . 54 . 279 97 244 . . . . 464 154 494 . . . . 150 276 527 476 1356 1812 2987 Initial 1159 | . . . . . . 97 . . . . . 1 154 74 . . . . 5 67 136 291 266 811 1159 Average 333 | 1 20 . 12 . 79 12 148 . . . . 211 133 267 . . . . 58 113 184 325 726 1170 1955 Influence Increases 13315 | 25 255 105 305 . 409 2 948 30 252 531 125 923 2 942 . 160 . 70 312 712 952 916 1604 1477 2258 Destroy 0b10 Robot/C 6460 | . 100 60 80 . 160 . 360 20 160 340 100 300 . 260 . 140 . 60 160 400 560 420 800 660 1320 Destroy 0b10 Robot/NC 570 | 25 30 . 40 . 5 . 35 . 5 . . 45 . 20 . . . 10 25 40 85 15 85 35 70 Destroy Leader 1226 | . 36 . . . 30 . 106 10 20 . . 84 . 50 . 20 . . 32 76 112 136 188 146 180 Allied During Kill 460 | . . . 4 . 1 . 204 . 52 161 25 1 . . . . . . . . . . . . 12 Successful Hack 277 | . 14 . 21 . . . 55 . . . . 36 . 26 . . . . 18 14 24 18 . 51 . Select Force Hacks 150 | . . . 150 . . . . . . . . . . . . . . . . . . . . . . Disable Machine 930 | . . . . . 60 . 15 . . . . 105 . 225 . . . . 15 90 . 135 135 60 90 Destroy Structure 2282 | . . . 10 . 78 2 98 . . . . 172 2 136 . . . . 62 62 96 132 366 510 556 Partial Spotted 105 | . . . . . . . 15 . . . . 15 . 60 . . . . . 15 . . . . . Lose Combat Pursuer 855 | . 75 45 . . 75 . 60 . 15 30 . 165 . 165 . . . . . 15 75 60 30 15 30 Influence Decreases 10438 | 25 208 152 277 28 130 281 885 93 252 142 511 485 337 800 248 160 . 62 200 589 677 960 726 1017 1193 Entered New Map 2852 | . . 23 . 28 . 182 . 24 . . 389 2 287 32 93 . . . 3 53 107 227 208 541 653 Time Decay 6183 | 25 208 106 273 . 100 99 491 69 212 102 102 421 50 428 155 150 . 62 187 516 570 733 518 416 190 Lost Part 447 | . . 23 4 . . . 10 . . . 20 40 . 30 . 10 . . . 20 . . . 60 230 Lost Ally 506 | . . . . . 30 . 234 . 40 40 . 22 . 10 . . . . 10 . . . . . 120 Purge Threat 450 | . . . . . . . 150 . . . . . . 300 . . . . . . . . . . . Squads Dispatched 103 | . 2 . . . 1 . 13 . . . . 14 . 5 . . . 2 3 6 9 6 8 18 16 Investigation 13 | . 1 . . . . . 2 . . . . 5 . . . . . . 1 1 2 . 1 . . Extermination 31 | . . . . . . . 5 . . . . 3 . 3 . . . . 2 4 4 2 4 3 1 Reinforcement 16 | . 1 . . . 1 . 3 . . . . 2 . 2 . . . . . 1 1 1 1 3 . Assault 30 | . . . . . . . . . . . . . . . . . . 2 . . 2 . 2 9 15 Garrison 13 | . . . . . . . 3 . . . . 4 . . . . . . . . . 3 . 3 . Intercept . | . . . . . . . . . . . . . . . . . . . . . . . . . . Searches Triggered . | . . . . . . . . . . . . . . . . . . . . . . . . . . Construction Impeded 5 | . . . . . 1 . 1 . . . . . . 1 . . . . . . 1 . . 1 . Haulers Reinforced 2 | . . . . . . . 1 . . . . . . . . . . . . . . . . 1 . Active Scanning Responses . | . . . . . . . . . . . . . . . . . . . . . . . . . . Cargo Convoy Interrupts . | . . . . . . . . . . . . . . . . . . . . . . . . . . Stealth | -11 -10 -10 -7 -7 -5 -5 -5 -5 -5 -5 -4 -4 -4 -4 -4 -4 -4 -3 -3 -3 -2 -2 -2 -1 -1 --------- Run | Yrd Mat Sub Rec Scr Fac Was Fac Upp Upp War Pro Fac Was Fac Upp Upp Zhi Pro Res Tes Res Qua Sec Acc Com Distress Signals 15 | . 2 . . . . . 2 . . 1 . 2 . 2 . . . 1 . . . . 2 1 2 Communications Jammed 1 | . . . . . . . . . . . . . . . . . . . . 1 . . . . . Distress Signals 1 | . . . . . . . . . . . . . . . . . . . . 1 . . . . . Times Spotted 478 | . 16 18 4 . 13 . 21 2 3 29 5 37 6 27 . 6 . 1 11 26 37 32 48 42 94 Peak Tracking Total 19 | . 3 6 2 . 4 . 5 1 4 8 5 10 6 11 . 5 . 1 4 5 4 3 6 8 19 Tactical Retreats 34 | . 3 2 . . 3 . 2 . 1 1 . 4 . 8 . . . . . 1 2 2 2 1 2 Traps | -11 -10 -10 -7 -7 -5 -5 -5 -5 -5 -5 -4 -4 -4 -4 -4 -4 -4 -3 -3 -3 -2 -2 -2 -1 -1 ------- Run | Yrd Mat Sub Rec Scr Fac Was Fac Upp Upp War Pro Fac Was Fac Upp Upp Zhi Pro Res Tes Res Qua Sec Acc Com Traps Triggered 18 | . 2 . . . 1 . 3 . . . . 6 . 1 . . . . . . 3 2 . . . Indirectly . | . . . . . . . . . . . . . . . . . . . . . . . . . . Trap Hack Attempts . | . . . . . . . . . . . . . . . . . . . . . . . . . . Triggered . | . . . . . . . . . . . . . . . . . . . . . . . . . . Disarmed . | . . . . . . . . . . . . . . . . . . . . . . . . . . Reprogrammed . | . . . . . . . . . . . . . . . . . . . . . . . . . . Reused . | . . . . . . . . . . . . . . . . . . . . . . . . . . Traps Extracted . | . . . . . . . . . . . . . . . . . . . . . . . . . . Installed . | . . . . . . . . . . . . . . . . . . . . . . . . . . Triggered . | . . . . . . . . . . . . . . . . . . . . . . . . . . Machines | -11 -10 -10 -7 -7 -5 -5 -5 -5 -5 -5 -4 -4 -4 -4 -4 -4 -4 -3 -3 -3 -2 -2 -2 -1 -1 ---------- Run | Yrd Mat Sub Rec Scr Fac Was Fac Upp Upp War Pro Fac Was Fac Upp Upp Zhi Pro Res Tes Res Qua Sec Acc Com Machines Disabled 66 | . . . . . 4 . 1 . . 1 . 7 . 15 1 . . . 1 8 . 9 9 4 6 Max in Single Turn 9 | . . . . . 4 . . . . 1 . 2 . 9 1 . . . 1 1 . 1 1 1 1 Garrison Access 3 | . . . . . . . 1 . . . . 1 . . . . . . . . 1 . . . . Machines Repaired . | . . . . . . . . . . . . . . . . . . . . . . . . . . Machines Dismantled . | . . . . . . . . . . . . . . . . . . . . . . . . . . Machines Sabotaged . | . . . . . . . . . . . . . . . . . . . . . . . . . . Overloaded Fab Kills . | . . . . . . . . . . . . . . . . . . . . . . . . . . Hacking | -11 -10 -10 -7 -7 -5 -5 -5 -5 -5 -5 -4 -4 -4 -4 -4 -4 -4 -3 -3 -3 -2 -2 -2 -1 -1 --------- Run | Yrd Mat Sub Rec Scr Fac Was Fac Upp Upp War Pro Fac Was Fac Upp Upp Zhi Pro Res Tes Res Qua Sec Acc Com Machines Accessed 102 | . 5 . 11 4 1 . 13 3 1 3 . 15 . 7 . . 4 . 6 9 6 9 3 2 . Terminals 51 | . 5 . 5 . . . 7 1 . . . 6 . 4 . . . . 4 5 5 6 2 1 . Fabricators 10 | . . . . . . . 3 . . . . 5 . . . . . . 1 1 . . . . . Repair Stations 3 | . . . . . . . . . . . . . . 1 . . . . . . . 1 1 . . Recycling Units 11 | . . . 6 . 1 . . . . . . 2 . 2 . . . . . . . . . . . Scanalyzers 6 | . . . . . . . 1 . . . . . . . . . . . 1 2 . 1 . 1 . Garrison Access 7 | . . . . . . . 2 . . . . 2 . . . . . . . 1 1 1 . . . Total Hacks 284 | . 10 . 25 40 1 . 35 8 1 9 . 37 . 24 . . 17 . 22 19 11 17 4 4 . Successful 204 | . 4 . 14 40 1 . 23 8 1 9 . 30 . 21 . . 17 . 16 7 4 5 1 3 . Failed 79 | . 6 . 11 . . . 12 . . . . 7 . 3 . . . . 6 11 7 12 3 1 . Catastrophic 17 | . . . 4 . . . 4 . . . . 1 . . . . . . 2 2 1 3 . . . Database Lockouts 1 | . . . . . . . . . . . . . . . . . . . . 1 . . . . . Manual 81 | . 10 . 9 . . . 12 . . . . 19 . 6 . . . . 8 7 4 3 2 1 . Terminals 111 | . 10 . 11 . . . 16 2 . . . 14 . 15 . . . . 10 9 10 9 3 2 . Fabricators 45 | . . . . . . . 14 . . . . 18 . . . . . . 10 3 . . . . . Repair Stations 6 | . . . . . . . . . . . . . . 2 . . . . . . . 3 1 . . Recycling Units 24 | . . . 14 . 1 . . . . . . 2 . 7 . . . . . . . . . . . Scanalyzers 14 | . . . . . . . 2 . . . . . . . . . . . 2 5 . 3 . 2 . Garrison Access 11 | . . . . . . . 3 . . . . 3 . . . . . . . 2 1 2 . . . Terminal Hacks 110 | . 2 . 2 40 . . 7 8 1 9 . 6 . 9 . . 17 . 4 1 2 1 . 1 . Record 60 | . . . . 39 . . . 7 . 8 . . . . . . 5 . 1 . . . . . . Part Schematic 11 | . 2 . 1 . . . 2 . . . . 2 . . . . 4 . . . . . . . . Robot Analysis 4 | . . . . . . . . . . . . . . . . . 4 . . . . . . . . Prototype ID Bank 6 | . . . 1 . . . . . . . . . . 1 . . 4 . . . . . . . . Open Door 3 | . . . . . . . . 1 1 1 . . . . . . . . . . . . . . . Branch Access Points 5 | . . . . . . . 1 . . . . . . 1 . . . . 1 . 1 . . 1 . Machine Index 1 | . . . . . . . . . . . . . . . . . . . 1 . . . . . . Terminal Index 3 | . . . . . . . . . . . . 1 . 1 . . . . . 1 . . . . . Fabricator Index 2 | . . . . . . . . . . . . 1 . 1 . . . . . . . . . . . Repair Station Index 1 | . . . . . . . . . . . . . . 1 . . . . . . . . . . . Alert Level 1 | . . . . . . . . . . . . . . 1 . . . . . . . . . . . Unreport Threat 3 | . . . . . . . 1 . . . . . . 2 . . . . . . . . . . . Locate Traps 3 | . . . . . . . 1 . . . . . . 1 . . . . . . 1 . . . . Recall Extermination 3 | . . . . . . . 1 . . . . 1 . . . . . . 1 . . . . . . Registered Components 1 | . . . . . . . 1 . . . . . . . . . . . . . . . . . . Zone Layout 2 | . . . . . . . . . . . . 1 . . . . . . . . . 1 . . . Proto ID Catalog 1 | . . . . 1 . . . . . . . . . . . . . . . . . . . . . Fabricator Hacks 30 | . . . . . . . 9 . . . . 11 . . . . . . 8 2 . . . . . Network Status 2 | . . . . . . . 1 . . . . 1 . . . . . . . . . . . . . Load Schematic 17 | . . . . . . . 5 . . . . 7 . . . . . . 4 1 . . . . . Build 11 | . . . . . . . 3 . . . . 3 . . . . . . 4 1 . . . . . Repair Station Hacks 3 | . . . . . . . . . . . . . . 2 . . . . . . . 1 . . . Scan Component 2 | . . . . . . . . . . . . . . 1 . . . . . . . 1 . . . Repair 1 | . . . . . . . . . . . . . . 1 . . . . . . . . . . . Recycling Unit Hacks 16 | . . . 6 . 1 . . . . . . 2 . 7 . . . . . . . . . . . Recycle Component 2 | . . . . . . . . . . . . . . 2 . . . . . . . . . . . Process 4 | . . . . . . . . . . . . . . 4 . . . . . . . . . . . Retrieve Matter 1 | . . . . . . . . . . . . . . 1 . . . . . . . . . . . Retrieve Components 9 | . . . 6 . 1 . . . . . . 2 . . . . . . . . . . . . . Scanalyzer 9 | . . . . . . . 1 . . . . . . . . . . . 2 2 . 3 . 1 . Insert Component 1 | . . . . . . . . . . . . . . . . . . . . 1 . . . . . Retrieve Study 8 | . . . . . . . 1 . . . . . . . . . . . 2 1 . 3 . 1 . Garrison Access Hacks 3 | . . . . . . . 1 . . . . 1 . . . . . . . . 1 . . . . Seal Access 3 | . . . . . . . 1 . . . . 1 . . . . . . . . 1 . . . . Unauthorized Hacks 33 | . 2 . 6 . . . 5 . . . . 10 . 3 . . . . 2 2 1 . 1 1 . Terminals 17 | . 2 . 1 . . . 2 . . . . 4 . 3 . . . . 2 1 1 . . 1 . Assimilate 3 | . . . . . . . . . . . . 1 . 1 . . . . 1 . . . . . . Botnet 13 | . 1 . 1 . . . 2 . . . . 3 . 2 . . . . 1 1 1 . . 1 . Operators 1 | . 1 . . . . . . . . . . . . . . . . . . . . . . . . Fabricators 9 | . . . . . . . 3 . . . . 6 . . . . . . . . . . . . . Prioritize 3 | . . . . . . . 1 . . . . 2 . . . . . . . . . . . . . Recompile 6 | . . . . . . . 2 . . . . 4 . . . . . . . . . . . . . Repair Stations 1 | . . . . . . . . . . . . . . . . . . . . . . . 1 . . Patch 1 | . . . . . . . . . . . . . . . . . . . . . . . 1 . . Recycling Units 5 | . . . 5 . . . . . . . . . . . . . . . . . . . . . . Tunnel 5 | . . . 5 . . . . . . . . . . . . . . . . . . . . . . Scanalyzers 1 | . . . . . . . . . . . . . . . . . . . . 1 . . . . . Researchers 1 | . . . . . . . . . . . . . . . . . . . . 1 . . . . . Garrison Access . | . . . . . . . . . . . . . . . . . . . . . . . . . . Data Cores Recovered 2 | . . . . . . . . . . . . . . . . . . . . . 1 . 1 . . Used . | . . . . . . . . . . . . . . . . . . . . . . . . . . Hacking Detections 72 | . 5 . 7 . . . 11 1 . . . 10 . 6 . . . . 6 9 4 9 2 2 . Full Trace Events 5 | . . . 3 . . . . . . . . . . . . . . . . 1 1 . . . . Feedback Events 1 | . . . 1 . . . . . . . . . . . . . . . . . . . . . . Corruption 1 | . . . 1 . . . . . . . . . . . . . . . . . . . . . . Feedback Blocked . | . . . . . . . . . . . . . . . . . . . . . . . . . . Robot Schematics Acquired . | . . . . . . . . . . . . . . . . . . . . . . . . . . Robots Built . | . . . . . . . . . . . . . . . . . . . . . . . . . . Authchips . | . . . . . . . . . . . . . . . . . . . . . . . . . . Time . | . . . . . . . . . . . . . . . . . . . . . . . . . . Total Robot Build Rating . | . . . . . . . . . . . . . . . . . . . . . . . . . . Part Schematics Acquired 11 | . 2 . 1 . . . 2 . . . . 2 . . . . 4 . . . . . . . . Parts Built 13 | . . . . . . . 3 . . . . 4 . . . . . . 5 1 . . . . . Authchips 10 | . . . . . . . 3 . . . . 3 . . . . . . 4 . . . . . . Time 537 | . . . . . . . 184 . . . . 102 . . . . . . 195 56 . . . . . Total Part Build Rating 71 | . . . . . . . 13 . . . . 22 . . . . . . 30 6 . . . . . Part Studies Acquired 8 | . . . . . . . 1 . . . . . . . . . . . 2 1 . 3 . 1 . Parts Repaired 1 | . . . . . . . . . . . . . . 1 . . . . . . . . . . . Time 62 | . . . . . . . . . . . . . . 62 . . . . . . . . . . . Parts Recycled 2 | . . . . . . . . . . . . . . 2 . . . . . . . . . . . Recycled Matter 63 | . . . . . . . . . . . . . . 63 . . . . . . . . . . . Retrieved Matter 15 | . . . . . . . . . . . . . . 15 . . . . . . . . . . . Retrieved Components 15 | . . . 11 . . . . . . . . 4 . . . . . . . . . . . . . Parts Scanalyzed . | . . . . . . . . . . . . . . . . . . . . . . . . . . Part Schematics Acquired . | . . . . . . . . . . . . . . . . . . . . . . . . . . Parts Damaged . | . . . . . . . . . . . . . . . . . . . . . . . . . . Bothacking | -11 -10 -10 -7 -7 -5 -5 -5 -5 -5 -5 -4 -4 -4 -4 -4 -4 -4 -3 -3 -3 -2 -2 -2 -1 -1 ------------ Run | Yrd Mat Sub Rec Scr Fac Was Fac Upp Upp War Pro Fac Was Fac Upp Upp Zhi Pro Res Tes Res Qua Sec Acc Com Used RIF Installer . | . . . . . . . . . . . . . . . . . . . . . . . . . . Robots Hacked 1 | . . . . . . . . . . . . 1 . . . . . . . . . . . . . Non-combat 1 | . . . . . . . . . . . . 1 . . . . . . . . . . . . . Combat . | . . . . . . . . . . . . . . . . . . . . . . . . . . Robot Hacks Applied 1 | . . . . . . . . . . . . 1 . . . . . . . . . . . . . find_chute 1 | . . . . . . . . . . . . 1 . . . . . . . . . . . . . Relay Couplers Released 4 | . . . . . . . . . . . . 4 . . . . . . . . . . . . . Programmers 4 | . . . . . . . . . . . . 4 . . . . . . . . . . . . . Fabnet Peak Effective % . | . . . . . . . . . . . . . . . . . . . . . . . . . . Robots Rewired 16 | . . . 7 . . . . 4 . 5 . . . . . . . . . . . . . . . Allies Hacked 2 | . . . . . . . 1 . . . . 1 . . . . . . . . . . . . . Hacks Repelled . | . . . . . . . . . . . . . . . . . . . . . . . . . . Allies | -11 -10 -10 -7 -7 -5 -5 -5 -5 -5 -5 -4 -4 -4 -4 -4 -4 -4 -3 -3 -3 -2 -2 -2 -1 -1 -------- Run | Yrd Mat Sub Rec Scr Fac Was Fac Upp Upp War Pro Fac Was Fac Upp Upp Zhi Pro Res Tes Res Qua Sec Acc Com Total Allies 45 | . . . 7 . . 20 . 4 . 5 . 1 . 1 . . . . 1 . . . . . 6 Largest Group 20 | . . . 7 4 4 20 13 4 4 7 3 3 . 1 . . . . 1 . . . . . 1 Highest-Rated Group 814 | . . . 125 81 81 814 535 116 116 307 120 120 . 26 . . . . 26 . . . . . 10 Highest-Rated Ally 68 | . . . 34 34 34 50 46 30 30 68 49 49 . 26 . . . . 26 . . . . . 10 Initial UFD Resources 50 | . . . . . 37 37 37 37 37 37 40 40 40 40 40 40 40 42 42 42 46 46 46 50 50 Total Orders 20 | . . . 2 . . . . . . 8 2 4 . . . . . . 4 . . . . . . STAY 12 | . . . 1 . . . . . . 5 1 2 . . . . . . 3 . . . . . . FOLLOW 8 | . . . 1 . . . . . . 3 1 2 . . . . . . 1 . . . . . . Ally Attacks 177 | . . . 21 . 2 . 70 . 20 38 10 10 . . . . . . . . . . . . 6 Total Damage 4411 | . . . 247 . 32 . 1540 . 339 1491 356 324 . . . . . . . . . . . . 82 Kills 28 | . . . 1 . . . 10 . 4 11 1 1 . . . . . . . . . . . . . Allies Corrupted . | . . . . . . . . . . . . . . . . . . . . . . . . . . Allies Melted 2 | . . . . . . . . . . . . . . . . . . 2 . . . . . . . Intel | -11 -10 -10 -7 -7 -5 -5 -5 -5 -5 -5 -4 -4 -4 -4 -4 -4 -4 -3 -3 -3 -2 -2 -2 -1 -1 ------- Run | Yrd Mat Sub Rec Scr Fac Was Fac Upp Upp War Pro Fac Was Fac Upp Upp Zhi Pro Res Tes Res Qua Sec Acc Com Active Infowar (turns) 22331 | . . . . 159 335 881 1764 707 794 1312 576 1811 105 920 497 957 95 451 711 2102 1825 3518 1167 1147 497 Optics 5657 | . . . . . . . 612 707 794 1312 576 1656 . . . . . . . . . . . . . Sensors 20964 | . . . . . 334 881 1610 686 794 1310 542 1653 105 920 497 957 95 451 710 1749 1825 3516 1167 1147 15 Structural 6275 | . . . . 159 335 881 1686 687 794 513 544 676 . . . . . . . . . . . . . Seismic 482 | . . . . . . . . . . . . . . . . . . . . . . . . . 482 Machine Analysis 2 | . . . . . . . . . . . . . . . . . . . . . . 2 . . . Jamming 1184 | . . . . . . . . . . . . . . . . . . . 55 1129 . . . . . ECM 2 | . . . . . . . . . . . . . . . . . . 2 . . . . . . . Robot Analysis Total 4 | . . . . . . . . . . . . . . . . . 4 . . . . . . . . Derelict Logs Recovered 8 | . . . . 1 . . . 2 1 . 1 . . . 1 2 . . . . . . . . . Drone Launches . | . . . . . . . . . . . . . . . . . . . . . . . . . . Drone Recoveries . | . . . . . . . . . . . . . . . . . . . . . . . . . . Exploration | -11 -10 -10 -7 -7 -5 -5 -5 -5 -5 -5 -4 -4 -4 -4 -4 -4 -4 -3 -3 -3 -2 -2 -2 -1 -1 ------------- Run | Yrd Mat Sub Rec Scr Fac Was Fac Upp Upp War Pro Fac Was Fac Upp Upp Zhi Pro Res Tes Res Qua Sec Acc Com Turns Passed 31445 | 119 1246 1492 1872 3200 337 881 1851 707 794 1312 576 1811 105 1059 497 957 96 468 749 2172 1932 3653 1422 1172 965 Spaces Moved 21424 | 54 822 877 1055 2053 212 749 1380 602 681 848 497 1570 136 1121 815 714 146 520 635 1221 918 2018 729 633 418 Core 4 | 2 . . . . . . . . . . . 2 . . . . . . . . . . . . . Treads 5295 | . . . . . . . . . . . . . . . . . . . . 579 918 2018 729 633 418 Legs . | . . . . . . . . . . . . . . . . . . . . . . . . . . Wheels 10465 | 52 822 877 1055 2053 212 749 1380 602 681 848 497 637 . . . . . . . . . . . . . Hover 5660 | . . . . . . . . . . . . 931 136 1121 815 714 146 520 635 642 . . . . . Flight . | . . . . . . . . . . . . . . . . . . . . . . . . . . Fastest Speed 45 | 50 100 130 117 90 95 90 90 95 95 95 95 49 52 45 54 54 55 55 55 48 145 145 141 141 138 Average Speed 113 | 98 124 139 150 152 108 91 96 95 95 97 95 71 52 52 54 129 56 62 79 125 154 151 141 142 140 Slowest Speed 1300 | 100 145 155 160 165 165 95 105 100 95 100 100 1300 52 54 54 135 135 135 133 270 156 225 145 226 141 Overloaded Moves 33 | . . . . . . . . . . . . . . 33 . . . . . . . . . . . Propulsion Burnouts . | . . . . . . . . . . . . . . . . . . . . . . . . . . Robots Hopped . | . . . . . . . . . . . . . . . . . . . . . . . . . . Potential Cave-ins 3 | . . . . . . . . . . . . . . . . . . . . . . . . 3 . Cave-ins Triggered . | . . . . . . . . . . . . . . . . . . . . . . . . . . Exploration Rate (%) 59 | 4 98 48 99 85 5 90 39 91 84 91 78 40 75 27 87 79 60 58 15 93 26 93 35 19 21 Regions Visited 25 Branch Regions 15 Pre-discovered Areas 14 | . . . 5 4 . . . 1 . . 1 . . . . . 3 . . . . . . . . Known Exits Taken 16 | . . . . . . . 1 1 1 1 1 . . 1 1 1 1 1 1 1 1 1 1 1 . Unknown Exits Taken 5 | 1 1 1 1 1 . . . . . . . . . . . . . . . . . . . . . Scrap Searched 23 | . . . . 10 . . . 4 2 . 1 . . . 4 1 . 1 . . . . . . . Spaces Dug 200 | . . 1 2 . . . 30 8 4 . 1 21 . 17 4 . . 2 11 12 19 15 22 28 3 Terrain Destroyed 1338 | . . 21 2 . 46 2 49 27 32 18 16 96 1 73 5 84 . 33 34 41 36 67 137 221 297 Melee . | . . . . . . . . . . . . . . . . . . . . . . . . . . Projectile 552 | . . 8 . . 6 2 49 25 9 10 16 73 1 36 5 1 . 3 15 21 26 24 28 56 138 AOE 781 | . . 13 . . 40 . . . 23 8 . 23 . 37 . 83 . 30 19 20 10 42 109 165 159 Terrain Rammed . | . . . . . . . . . . . . . . . . . . . . . . . . . . Walls Destroyed . | . . . . . . . . . . . . . . . . . . . . . . . . . . Machines Disabled . | . . . . . . . . . . . . . . . . . . . . . . . . . . Actions | -11 -10 -10 -7 -7 -5 -5 -5 -5 -5 -5 -4 -4 -4 -4 -4 -4 -4 -3 -3 -3 -2 -2 -2 -1 -1 --------- Run | Yrd Mat Sub Rec Scr Fac Was Fac Upp Upp War Pro Fac Was Fac Upp Upp Zhi Pro Res Tes Res Qua Sec Acc Com Total 27303 | 90 962 1037 1290 2120 281 904 1822 696 782 1296 559 2125 169 1500 864 734 160 641 835 1800 1358 2578 1088 879 733 Wait 3234 | 8 48 44 86 2 26 90 291 32 64 317 39 354 34 247 41 10 3 95 122 343 278 347 154 87 72 Move 21402 | 53 821 876 1054 2052 212 748 1379 601 680 847 496 1570 135 1120 814 713 145 519 634 1220 917 2017 728 633 418 Hop . | . . . . . . . . . . . . . . . . . . . . . . . . . . Pick Up 308 | 7 18 14 14 29 14 9 36 . 2 25 1 23 . 9 1 . 2 . 4 29 8 28 11 7 17 Fast Attach 85 | 6 4 . 1 1 . 1 3 . . 3 1 4 . 8 . . 2 2 4 11 5 11 6 3 9 Attach 111 | . . 11 2 3 9 . 2 . . 3 1 10 . 2 1 . 1 . 5 16 3 8 2 10 22 Detach 30 | . . . . . . . . . . . . 1 . . . . . . 4 6 . 4 1 4 10 Swap 359 | . 11 12 11 15 4 11 26 12 6 16 2 38 . 22 . 1 4 11 9 36 22 29 29 17 15 Drop 295 | 1 13 11 15 18 3 15 30 . 2 27 1 22 . 13 . 1 3 2 2 35 12 31 14 4 20 Fire 1323 | 15 47 69 40 . 13 30 55 27 28 30 18 86 . 67 7 9 . 12 51 104 112 103 143 109 148 Melee 1 | . . . . . . . . . . . . 1 . . . . . . . . . . . . . Ram . | . . . . . . . . . . . . . . . . . . . . . . . . . . Kick . | . . . . . . . . . . . . . . . . . . . . . . . . . . Crush 1 | . . . . . . . . . . . . . . . . . . . . . 1 . . . . Escape Stasis 30 | . . . . . . . . . . . . 16 . 12 . . . . . . . . . . 2 Rewire 124 | . . . 67 . . . . 24 . 28 . . . . . . . . . . . . . 5 . Trap . | . . . . . . . . . . . . . . . . . . . . . . . . . . Miscellaneous . | . . . . . . . . . . . . . . . . . . . . . . . . . . Route ------- -11/Scrapyard -10/Materials (discovered 6 exits: [*Mat x3] / [*Min x2] / [*Sub]) -10/Subcaves (discovered 2 exits: [*Mat] / *Rec) -7/Recycling (discovered 2 exits: *Fac / *Scr) -7/Scraptown (discovered 2 exits: *Fac x2) -5/Factory (discovered 5 exits: Fac x3 / Upp / Ext) -5/Waste -5/Factory (discovered 7 exits: *Fac x3 / *Upp x2 / Ext x2) -5/Upper Caves -5/Upper Caves (discovered 2 exits: Fac / *War) -5/Warlord -4/Proximity Caves -4/Factory (discovered 5 exits: *Res x4 / *Upp) -4/Waste -4/Factory (discovered 3 exits: *Upp x2 / Arm) -4/Upper Caves -4/Upper Caves (discovered 2 exits: *Res / *Zhi) -4/Zhirov -3/Proximity Caves -3/Research (discovered 2 exits: *Tes x2) -3/Testing -2/Research (discovered 2 exits: *Qua x2) -2/Quarantine (discovered 3 exits: *Acc / *Sec / [*Frg]) -2/Section 7 -1/Access -1/Command History --------- Turn | Location | Event 23 | -11/Scrapyard | Discovered new exit (range 15) 120 | -11/Scrapyard | Entered Materials 121 | -10/Materials | Met a group of wandering Federalists 271 | -10/Materials | Discovered new exit (range 3) 302 | -10/Materials | Build established: Mutant 408 | -10/Materials | Discovered new exit (range 12) 483 | -10/Materials | Discovered new exit (range 13) 526 | -10/Materials | Discovered new exit (range 14) 557 | -10/Materials | Discovered new exit (range 10) 1241 | -10/Materials | Build established: Scavenger-Mutant 1346 | -10/Materials | Discovered new exit (range 15) 1366 | -10/Materials | Entered Subcaves 1367 | -10/Subcaves | Approached by a straggling Scientist 1676 | -10/Subcaves | Lost 6 parts (2p2n2w) 1676 | -10/Subcaves | Core integrity fell below 50% 1775 | -10/Subcaves | A swath of the cavern ceiling suddenly collapsed 1845 | -10/Subcaves | Shifting Twisted Machinery released Sub. Shrapnel Launcher 1848 | -10/Subcaves | Shifting Twisted Machinery released Shrapnel Trap 1897 | -10/Subcaves | Found Prototype Wheel 2048 | -10/Subcaves | Discovered new exit (range 14) 2256 | -10/Subcaves | Ambushed by Subdwellers from Twisted Machinery 2322 | -10/Subcaves | Lost 4 parts (1p2n1w) 2466 | -10/Subcaves | A swath of the cavern ceiling suddenly collapsed 2691 | -10/Subcaves | Shifting Twisted Machinery released Spk. Treads 2703 | -10/Subcaves | Shifting Twisted Machinery released Sub. Machine Gun 2705 | -10/Subcaves | Discovered new exit (range 6) 2811 | -10/Subcaves | Build established: Mutant 2858 | -10/Subcaves | Entered Recycling 3187 | -7/Recycling | Discovered new exit (range 5) 3371 | -7/Recycling | Core integrity fell below 20% 4530 | -7/Recycling | Build established: Commander-Mutant 4591 | -7/Recycling | Lost 3 allies 4688 | -7/Recycling | Scanned before Scraplab entrance 4710 | -7/Recycling | Entered Scraplab 4723 | -7/Recycling | Discovered new exit (range 2) 4730 | -7/Recycling | Entered Scraptown 4730 | -7/Scraptown | Accompanied by 4 allies 4730 | -7/Scraptown | System corruption cleaned by C-Scrubber 4901 | -7/Scraptown | Heard Great Nut preacher, LISTEN AND RECITE! 5015 | -7/Scraptown | Visited Awakened 5052 | -7/Scraptown | Visited Shadow of the Wyrm 5068 | -7/Scraptown | Visited SPCMW 5111 | -7/Scraptown | Visited Cave Peace 5173 | -7/Scraptown | Visited Bundlers 5314 | -7/Scraptown | Visited CR-KLE's Repair Center 5329 | -7/Scraptown | CR-KLE repaired 7 parts 5719 | -7/Scraptown | Discovered new exit (range 7) 5891 | -7/Scraptown | Visited Cyclists 6178 | -7/Scraptown | Scanned Subdweller tech in exchange for log data 6760 | -7/Scraptown | Visited UFD Registry 6760 | -7/Scraptown | Registered with UFD as "Electrodome" 6787 | -7/Scraptown | Visited DA-N13 Charitable Foundation 6802 | -7/Scraptown | Found DCF Scrap (30 items) 6851 | -7/Scraptown | Visited Junk Cannon Lab 6892 | -7/Scraptown | Visited Science Guys 6943 | -7/Scraptown | Visited Curators Association 6994 | -7/Scraptown | Visited Research Penetration Think Tank 7037 | -7/Scraptown | Visited Scrap Suit Storage 7110 | -7/Scraptown | Visited Botcube Research 7139 | -7/Scraptown | Visited Cartography Club 7645 | -7/Scraptown | Learned location of Extension (-5) 7645 | -7/Scraptown | Learned location of Archives (-5) 7645 | -7/Scraptown | Learned 8 Materials zone layouts 7645 | -7/Scraptown | Learned 24 Factory zone layouts 7645 | -7/Scraptown | Learned 12 Research zone layouts 7645 | -7/Scraptown | Learned 4 Access zone layouts 7645 | -7/Scraptown | Learned 4 Storage zone layouts 7645 | -7/Scraptown | Learned 20 Lower Caves zone layouts 7645 | -7/Scraptown | Learned 12 Upper Caves zone layouts 7645 | -7/Scraptown | Learned 20 Upper Caves zone layouts 7645 | -7/Scraptown | Learned 20 Proximity Caves zone layouts 7645 | -7/Scraptown | Learned Research emergency access door positions 7645 | -7/Scraptown | Learned location of 2 exits from Factory 7645 | -7/Scraptown | Learned location of 1 exit from Upper Caves 7645 | -7/Scraptown | Learned location of 3 exits from Proximity Caves 7681 | -7/Scraptown | Found Deep Structural Scanner 7872 | -7/Scraptown | Discovered new exit (range 12) 7930 | -7/Scraptown | Entered Factory 7930 | -5/Factory | Accompanied by 4 allies 7930 | -5/Factory | Evolved 10 slots: Propulsion x4, Utility x6 7931 | -5/Factory | Identified exit to Extension 7931 | -5/Factory | Identified exit to Upper Caves 7932 | -5/Factory | Identified exit to Factory 8008 | -5/Factory | Identified Maxwheels 8011 | -5/Factory | Attached Maxwheels, gained temporary slots: Weapon x2 8114 | -5/Factory | Lost 4 allies 8267 | -5/Factory | Sucked down chute 8267 | -5/Factory | Entered Waste 8268 | -5/Waste | Joined by Warlord forces that had cleared the area 8400 | -5/Waste | Build established: Scavenger-Skirmisher 8419 | -5/Waste | Discovered new exit (range 13) 8499 | -5/Waste | Found Prototype Launcher 8499 | -5/Waste | Identified Tesla Bomb Launcher 8510 | -5/Waste | Found Prototype Launcher 8510 | -5/Waste | Identified Mni. Smartbomb Launcher 8539 | -5/Waste | Found Prototype Launcher 8539 | -5/Waste | Identified Point Singularity Launcher 8662 | -5/Waste | Found Broken Gamma Bomb Array 8848 | -5/Waste | Build established: Scavenger-Tank 9148 | -5/Waste | Entered Factory 9148 | -5/Factory | Accompanied by 13 allies 9446 | -5/Factory | Garrison activated, responded to threat 9531 | -5/Factory | Lost 8 allies 9585 | -5/Factory | Fabricated Adv. Hacking Suite? 9672 | -5/Factory | Fabricated Huge Storage Unit? 9848 | -5/Factory | Discovered exit to Factory (range 5) 10087 | -5/Factory | Discovered exit to Factory (range 15) 10140 | -5/Factory | Discovered exit to Factory (range 9) 10416 | -5/Factory | Fabricated Adv. Hacking Suite (x1) 10999 | -5/Factory | Entered Upper Caves 11000 | -5/Upper Caves | Identified exit to Upper Caves 11057 | -5/Upper Caves | Entered an active Warlord outpost 11065 | -5/Upper Caves | Learned Armory garrison access intel 11103 | -5/Upper Caves | Learned location of 1 exit from Proximity Caves 11134 | -5/Upper Caves | Build established: Hacker-Skirmisher 11586 | -5/Upper Caves | Attacked by a delusional Derelict stockpiling Unaware 11706 | -5/Upper Caves | Entered another Upper Caves area 11706 | -5/Upper Caves | Accompanied by 4 allies 11707 | -5/Upper Caves | Identified exit to Warlord 11893 | -5/Upper Caves | Learned Factory stockpile data 12451 | -5/Upper Caves | Entered a destroyed Warlord outpost 12500 | -5/Upper Caves | Entered Warlord 12500 | -5/Warlord | Accompanied by 2 allies 12501 | -5/Warlord | Identified exit to Proximity Caves 12728 | -5/Warlord | Received a Watcher feed algorithm from an ecstatic Tinkerer 12814 | -5/Warlord | Visited the Vortex Lab 12821 | -5/Warlord | Found Prototype Energy Gun 12821 | -5/Warlord | Identified Vortex Shotgun 12827 | -5/Warlord | Found Vortex Shotgun 12831 | -5/Warlord | Warlord's base attacked by MAIN.C 12833 | -5/Warlord | Found Prototype Energy Cannon 12872 | -5/Warlord | Build established: Commander-Skirmisher 12980 | -5/Warlord | Identified Vortex Driver 12992 | -5/Warlord | Found Prototype Reactor 13028 | -5/Warlord | Found Prototype Processor 13030 | -5/Warlord | Found Prototype Device 13065 | -5/Warlord | Identified Exp. Armor Integrity Analyzer 13090 | -5/Warlord | Identified Exp. Focal Shield 13097 | -5/Warlord | Identified Vortex Chain Reactor 13106 | -5/Warlord | Found Prototype Device 13114 | -5/Warlord | Identified Exp. Cloaking Device 13158 | -5/Warlord | Rebuked by Warlord 13181 | -5/Warlord | Warlord forces counterattacked 13210 | -5/Warlord | Spotted Striker 13249 | -5/Warlord | Lost 3 allies 13324 | -5/Warlord | Lost 3 allies 13437 | -5/Warlord | Spotted Striker 13458 | -5/Warlord | Spotted Executioner 13506 | -5/Warlord | Warlord base infiltrated, sounded retreat 13599 | -5/Warlord | Found Prototype Device 13599 | -5/Warlord | Identified Adv. Kinecellerator 13629 | -5/Warlord | Found Prototype Processor 13648 | -5/Warlord | Identified Exp. Targeting Computer 13690 | -5/Warlord | Spotted Executioner 13693 | -5/Warlord | Spotted Striker 13694 | -5/Warlord | Destroyed Executioner 13694 | -5/Warlord | Spotted Executioner 13710 | -5/Warlord | Allies destroyed Striker 13729 | -5/Warlord | Found Prototype Device 13733 | -5/Warlord | Spotted B-75 Beast 13733 | -5/Warlord | Spotted Executioner 13736 | -5/Warlord | Spotted B-86 Titan 13737 | -5/Warlord | Lost 19 allies 13760 | -5/Warlord | Identified Exp. Shock Absorption System 13792 | -5/Warlord | Lost 5 allies 13812 | -5/Warlord | Entered Proximity Caves 13812 | -4/Proximity Caves | Accompanied by 3 allies 13884 | -4/Proximity Caves | Build established: Hacker-Skirmisher 14145 | -4/Proximity Caves | Attracted the attention of an 0b10 checkpoint 14244 | -4/Proximity Caves | Learned location of Quarantine (-2) 14388 | -4/Proximity Caves | Entered Factory 14388 | -4/Factory | Accompanied by 3 allies 14388 | -4/Factory | Evolved 2 slots: Utility x2 14389 | -4/Factory | Identified exit to Research 14508 | -4/Factory | Build established: Scavenger-Skirmisher 14718 | -4/Factory | Fabricated Adv. Hacking Suite? 14753 | -4/Factory | Garrison activated, responded to threat 14759 | -4/Factory | Fabricated Adv. Hacking Suite? 14816 | -4/Factory | Fabricated Weapon Mount (x2) 14878 | -4/Factory | Discovered exit to Research (range 23) 14927 | -4/Factory | Garrison activated, responded to threat 14942 | -4/Factory | System corruption reached 10% 15094 | -4/Factory | Discovered new exit (range 11) 15127 | -4/Factory | Identified exit to Upper Caves 16199 | -4/Factory | Sucked down chute 16199 | -4/Factory | Entered Waste 16214 | -4/Waste | EMP discharged 16215 | -4/Waste | Spotted C-40 Crusher 16227 | -4/Waste | Spotted C-40 Crusher 16265 | -4/Waste | Spotted C-40 Crusher 16266 | -4/Waste | Spotted C-40 Crusher 16279 | -4/Waste | Spotted C-40 Crusher 16282 | -4/Waste | Spotted C-40 Crusher 16294 | -4/Waste | Discovered new exit (range 11) 16298 | -4/Waste | Identified exit to Factory 16304 | -4/Waste | Entered Factory 16353 | -4/Factory | Build established: Hacker-Mutant 16388 | -4/Factory | Identified exit to Armory 16816 | -4/Factory | Watched by a mysterious "MATRIX" hacker 16878 | -4/Factory | Repaired Lrn. Sensor Array 17363 | -4/Factory | Entered Upper Caves 17379 | -4/Upper Caves | Encountered a Warlord checkpoint 17388 | -4/Upper Caves | Learned Research trap positions 17744 | -4/Upper Caves | Discovered new exit (range 12) 17760 | -4/Upper Caves | Entered a destroyed Warlord outpost 17860 | -4/Upper Caves | Identified exit to Upper Caves 17860 | -4/Upper Caves | Entered another Upper Caves area 18074 | -4/Upper Caves | Discovered exit to Research (range 11) 18409 | -4/Upper Caves | Learned 4 Research zone layouts 18504 | -4/Upper Caves | Learned Research emergency access door positions 18717 | -4/Upper Caves | Discovered new exit (range 7) 18725 | -4/Upper Caves | Identified exit to Zhirov 18817 | -4/Upper Caves | Entered Zhirov 18818 | -4/Zhirov | Identified exit to Proximity Caves 18828 | -4/Zhirov | Met Zhirov 18840 | -4/Zhirov | Learned location of Testing (-3) 18843 | -4/Zhirov | Zhirov requested help retrieving the SGEMP Prototype 18853 | -4/Zhirov | Found Alien Artifact 18853 | -4/Zhirov | Identified Integrated Reactor 18853 | -4/Zhirov | Installed Integrated Reactor, increased core energy generation (+10) 18863 | -4/Zhirov | Found Alien Artifact 18913 | -4/Zhirov | Entered Proximity Caves 18946 | -3/Proximity Caves | Attracted the attention of an 0b10 checkpoint 19121 | -3/Proximity Caves | Derelict sapper outpost attacked 19165 | -3/Proximity Caves | Encountered a Derelict sapper outpost 19381 | -3/Proximity Caves | Entered Research 19381 | -3/Research | Evolved 2 slots: Power x1, Weapon x1 19383 | -3/Research | Loaded intel: 74 trap records 19454 | -3/Research | Identified exit to Testing 19679 | -3/Research | Fabricated Exp. Utility Shielding (x1) 19729 | -3/Research | Build established: Hacker-Skirmisher 19741 | -3/Research | Fabricated Prc. Energy Filter (x1) 19785 | -3/Research | Fabricated Quantum Capacitor (x2) 19842 | -3/Research | Fabricated Exp. Utility Shielding? 20130 | -3/Research | Entered Testing 20206 | -3/Testing | Found Prototype Ballistic Cannon 20206 | -3/Testing | Identified Omega Cannon 20227 | -3/Testing | Build established: Hacker-Gunner 20859 | -3/Testing | Fabricated Prc. Energy Filter (x1) 21011 | -3/Testing | Found Prototype Energy Cannon 21011 | -3/Testing | Identified Potential Cannon 21014 | -3/Testing | Found Prototype Energy Cannon 21014 | -3/Testing | Identified Imp. Potential Cannon 21987 | -3/Testing | Found Prototype Processor 22008 | -3/Testing | Identified Spectral Analyzer 22105 | -3/Testing | Spotted PG-NSTT4UK12G 22129 | -3/Testing | Build established: Machinist-Gunner 22157 | -3/Testing | Central database locked down 22160 | -3/Testing | Identified Transdimensional Reconstructor 22169 | -3/Testing | Discovered new exit (range 15) 22274 | -3/Testing | Found Portable AFG 22301 | -3/Testing | Identified exit to Research 22302 | -3/Testing | Entered Research 22302 | -2/Research | Evolved 2 slots: Utility x1, Weapon x1 22664 | -2/Research | Spotted B-90 Cyclops 22686 | -2/Research | Destroyed B-90 Cyclops 22908 | -2/Research | Found Prototype Device 22927 | -2/Research | Identified Exp. EM Shield 23201 | -2/Research | Identified exit to Quarantine 23502 | -2/Research | System corruption reached 10% 23772 | -2/Research | Spotted B-90 Cyclops 23775 | -2/Research | Destroyed B-90 Cyclops 24052 | -2/Research | First assault squad dispatched 24234 | -2/Research | Entered Quarantine 24290 | -2/Quarantine | Build established: Machinist-Tank 24737 | -2/Quarantine | Found Transdimensional Reconstructor 24744 | -2/Quarantine | Found Alien Artifact 24744 | -2/Quarantine | Identified Dimensional Node Initializer 24744 | -2/Quarantine | Initialized slip node 25003 | -2/Quarantine | Cryocooling Duct disabled 25018 | -2/Quarantine | Ambient heat levels rising (+20) 25018 | -2/Quarantine | Non-combat units ordered to evacuate 25109 | -2/Quarantine | Found Alien Energy Cannon 25261 | -2/Quarantine | Garrison activated, responded to threat 25326 | -2/Quarantine | Cryocooling Duct disabled 25341 | -2/Quarantine | Ambient heat levels rising (+20) 25341 | -2/Quarantine | Combat units ordered to evacuate 25441 | -2/Quarantine | Quarantine Guard activated 25552 | -2/Quarantine | Found Alien Artifact 25611 | -2/Quarantine | Spotted Quarantine Guard 25614 | -2/Quarantine | Destroyed Quarantine Guard 25664 | -2/Quarantine | Identified Core Reset Matrix 25664 | -2/Quarantine | Identified Core Cannon 25664 | -2/Quarantine | Used Core Reset Matrix 25666 | -2/Quarantine | Spotted Quarantine Guard 25668 | -2/Quarantine | Detected hypermatrix surge 25668 | -2/Quarantine | Sensed 8 artifacts in vicinity 25729 | -2/Quarantine | Found Subatomic Replicator 25885 | -2/Quarantine | Spotted Quarantine Guard 25886 | -2/Quarantine | Destroyed Quarantine Guard 25889 | -2/Quarantine | Destroyed Quarantine Guard 26019 | -2/Quarantine | Spotted Quarantine Guard 26056 | -2/Quarantine | Destroyed Quarantine Guard 26122 | -2/Quarantine | Spotted Quarantine Guard 26406 | -2/Quarantine | Spotted Quarantine Guard 26418 | -2/Quarantine | Destroyed Quarantine Guard 26486 | -2/Quarantine | Spotted Quarantine Guard 26503 | -2/Quarantine | Destroyed Quarantine Guard 26861 | -2/Quarantine | Spotted Quarantine Guard 26872 | -2/Quarantine | Destroyed Quarantine Guard 27004 | -2/Quarantine | Destroyed Quarantine Guard 27046 | -2/Quarantine | Discovered new exit (range 15) 27046 | -2/Quarantine | Spotted Quarantine Guard 27054 | -2/Quarantine | Destroyed Quarantine Guard 27089 | -2/Quarantine | Identified exit to Access 27772 | -2/Quarantine | Spotted Fortress 27796 | -2/Quarantine | Build established: Scavenger-Tank 27881 | -2/Quarantine | Discovered new exit (range 5) 27881 | -2/Quarantine | Discovered new exit (range 6) 27881 | -2/Quarantine | Spotted Quarantine Guard 27881 | -2/Quarantine | Spotted Quarantine Guard 27885 | -2/Quarantine | Identified exit to Section 7 27887 | -2/Quarantine | Entered Section 7 27888 | -2/Section 7 | Detected hypermatrix surge 27888 | -2/Section 7 | Sensed 17 artifacts in vicinity 27896 | -2/Section 7 | Spotted B-90 Cyclops 27915 | -2/Section 7 | Destroyed B-90 Cyclops 27951 | -2/Section 7 | Found Integrated Mediator 27951 | -2/Section 7 | Installed Integrated Mediator, increased core attachment efficiency 28003 | -2/Section 7 | Found Integrity Redistributor 28004 | -2/Section 7 | Used Subatomic Replicator to replicate Integrity Redistributor 28071 | -2/Section 7 | Spotted S7 Guard 28090 | -2/Section 7 | Spotted S7 Guard 28120 | -2/Section 7 | Destroyed S7 Guard 28150 | -2/Section 7 | Destroyed S7 Guard 28195 | -2/Section 7 | Found Integrated Thermoelectric Network 28195 | -2/Section 7 | Installed Integrated Thermoelectric Network, gained heat-energy exchange potential 28241 | -2/Section 7 | Found Core Membrane 28241 | -2/Section 7 | Installed Core Membrane, gained immunity to corruption 28315 | -2/Section 7 | Found Corrupted Prototype Protection 28414 | -2/Section 7 | Build established: Alien-Tank 28561 | -2/Section 7 | Found Integrated Mediator 28561 | -2/Section 7 | Installed Integrated Mediator, increased core attachment efficiency 29137 | -2/Section 7 | First assault squad dispatched 29297 | -2/Section 7 | Discovered exit to Access (range 5) 29309 | -2/Section 7 | Entered Access 29309 | -1/Access | Evolved 2 slots: Utility x2 29324 | -1/Access | Identified exit to Command 29366 | -1/Access | Identified Hvy. Regenerative Plating 29809 | -1/Access | First assault squad dispatched 29832 | -1/Access | Garrison activated, responded to threat 30050 | -1/Access | Lost 4 parts (1u3w) 30072 | -1/Access | Destroyed 7 combat bots 30312 | -1/Access | High security lockdown imminent 30392 | -1/Access | High security lockdown engaged 30481 | -1/Access | Entered Command 30496 | -1/Command | Used Integrity Redistributor, redistributed integrity from core (-482) 30528 | -1/Command | Found Quantum Capacitor 30731 | -1/Command | First assault squad dispatched 30851 | -1/Command | Build established: Alien-Gunner 30861 | -1/Command | Spotted B-99 Colossus 30873 | -1/Command | High security lockdown imminent 30873 | -1/Command | Destroyed B-99 Colossus 30913 | -1/Command | Destroyed 19 combat bots 30953 | -1/Command | High security lockdown engaged 31077 | -1/Command | Core integrity fell below 50% 31115 | -1/Command | Destroyed 24 combat bots 31149 | -1/Command | Spotted Combat Programmer 31149 | -1/Command | Spotted Combat Programmer 31162 | -1/Command | Destroyed Combat Programmer 31165 | -1/Command | Destroyed Combat Programmer 31167 | -1/Command | Spotted Striker 31168 | -1/Command | Spotted Investigator 31171 | -1/Command | Destroyed Striker 31174 | -1/Command | Scanned by Researcher 31176 | -1/Command | Emitted hypermatrix ping 31176 | -1/Command | Spotted M Guard 31177 | -1/Command | Spotted M Guard 31181 | -1/Command | Assembled emerged from beneath the floor 31195 | -1/Command | Destroyed M Guard 31197 | -1/Command | Core integrity fell below 20% 31213 | -1/Command | Lost 5 allies 31220 | -1/Command | Destroyed Investigator 31223 | -1/Command | Destroyed M Guard 31223 | -1/Command | All MAIN.C guards destroyed 31244 | -1/Command | Destroyed 20 combat bots 31247 | -1/Command | Found Corrupted Prototype Device 31247 | -1/Command | Identified AEGIS Remote Shield 31249 | -1/Command | Lost 4 parts (2u2w) 31252 | -1/Command | Used Integrity Redistributor, redistributed integrity to core (+282) 31260 | -1/Command | Found Corrupted Prototype Energy Cannon 31260 | -1/Command | Identified Cld. Nova Cannon 31338 | -1/Command | Met MAIN.C 31342 | -1/Command | 0b10 Conduit disabled 31411 | -1/Command | Destroyed MAIN.C Shell 31414 | -1/Command | MAIN.C activated Command garrisons 31431 | -1/Command | Failed to warp due to unstable space 31446 | -1/Command | Destroyed by G-73 Enforcer with Heavy Laser Last Messages --------------- 31424_ Dropped Exp. Energy Well. 31425_ Extracted 163 energy. 31426_ Extracted 116 energy. 31427_ Extracted 31 energy. 31427_ Cld. Nova Cannon blasted off. 31428_ Extracted 88 energy. 31429_ Extracted 101 energy. 31429_ Vortex Shotgun implodes. 31430_ Extracted 46 energy. 31430_ Core Cannon destroyed. 31431_ Extracted 55 energy. 31431_ Warp failed due to unstable space. 31432_ Critical hit (Burn: +19). 31433_ Exp. Armor Integrity Analyzer destroyed. 31434_ Critical hit (Burn: +37). 31440_ G-73 Enforcer destroyed. 31442_ Biometal Heavy Treads destroyed. 31443_ Lgt. Quantum Reactor destroyed. 31446_ Hvy. Disruptor Cannon destroyed. 31446_ Biometal Heavy Treads destroyed. Map ----- +----------------------------------------------------+ | ?????????????????????????????????????????????????? | | ?????????????????????????????????????????????????? | | ?????????????????????????????????????????????????? | | ?????????????????????????????????????????????????? | | ?????????????????????????????????????????????????? | | ?????????????????????????????????????????????????? | | ?????????????????????????????????????????????????? | | ?????????????????????????????????????????????????? | | ?????????????????????????????????????????????????? | | ?????????????????????????????????????????????? ??? | | ?????????????????????????????????????????????? ??? | | ?????????????????????????????????????????????? ??? | | ????????????????????? ???????????????????????? ??? | | ????????????????????? ???????????????????????? ??? | | ????????????????????? #??????????????????????? #?? | | ?????????????????????#;??????????????????????? #?? | | ?????????????????????# ??????????????????????# #?? | | ??????????????########;####??????????????????# #?? | | ??????????????"""" #??????????????????#"#?? | | ??????????????"" #??????????????????#"#?? | | ??????????????"" ####################"##? | | ??????????????"" ; #? | | ?????????????""" i g #? | | ?????????????"" %g%; #? | | ?????????????"" g]###################" "#? | | ???????????" @#?????????????????#" "?? | | ?????????? #?????????????????# "## | | ?????????? M% #?????????????????# T# | | ???????????"" ""#?????????????????#+++## | | ??????????? """"""#?????????????????# | | ???????????? """"""#?????????????????# | | ???????????? " " #?????????????????# | | ???????????? " "?" " #?????????????????# | | ?????????????" "???"""" " #?????????????????# | | ????????????????????????? ??????????????????# # | | ????????????????????????????????????????????###### | | ?????????????????????????????????????????????????# | | ?????????????????????????????????????????????????? | | ?????????????????????????????????????????????????? | | ?????????????????????????????????????????????????? | | ?????????????????????????????????????????????????? | | ?????????????????????????????????????????????????? | | ?????????????????????????????????????????????????? | | ?????????????????????????????????????????????????? | | ?????????????????????????????????????????????????? | | ?????????????????????????????????????????????????? | | ?????????????????????????????????????????????????? | | ?????????????????????????????????????????????????? | | ?????????????????????????????????????????????????? | | ?????????????????????????????????????????????????? | +----------------------------------------------------+ Best States ------------- Heat Dissipation 78 Coolant Potential 240 Energy Generation 65 Energy Capacity 700 Matter Stores 300 Matter Capacity 300 Sight Range 23 Robot Scan Range 19 Terrain Scan Density 10 ECM Strength 2 Jamming Range 16 Power Amplification 30 Additional Mass Support 25 Armor Coverage 1200 Resistance: KI 30 Resistance: TH 30 Resistance: EX 75 Power Shielding 66 Utility Shielding 90 Weapon Cycling 20 Evasion (%) 56 Targeting Accuracy 20 Core Analysis 6 Armor Integrity Analysis 50 Recoil Reduction 6 Matter Filtering 30 Energy Filtering 75 Kinecelleration 50 Salvage Targeting 2 Offensive Hacking 48 Defensive Hacking 10 Authchip Count 4 Item Schematics ----------------- None Robot Schematics ------------------ None Fabricated ------------ Adv. Hacking Suite | x1 | -5/Factory | Authchip Huge Storage Unit | x1 | -5/Factory | Authchip Adv. Hacking Suite | x1 | -5/Factory | Authchip Adv. Hacking Suite | x1 | -4/Factory | Authchip Adv. Hacking Suite | x1 | -4/Factory | Authchip Weapon Mount | x2 | -4/Factory | Authchip Exp. Utility Shielding | x1 | -3/Research | Authchip Prc. Energy Filter | x1 | -3/Research | Authchip Quantum Capacitor | x2 | -3/Research | Authchip Exp. Utility Shielding | x1 | -3/Research | Authchip Prc. Energy Filter | x1 | -3/Testing Repaired ---------- Lrn. Sensor Array | 7% | -4/Factory Studied --------- Com. HERF Cannon | -1/Access | Hacked Alien Tech Used ----------------- Integrated Reactor Dimensional Node Initializer Core Reset Matrix Core Cannon Integrated Mediator Subatomic Replicator Integrated Thermoelectric Network Core Membrane Integrity Redistributor Transdimensional Reconstructor Achievements -------------- Power Plant Challenges ------------ None Game ------ Seed ThunderLaserReactor Manual? 0 Play Time 06:21:02 Cumulative 645.7 hours Start 2026.09.15 @ 21:27:42 End 2026.09.16 @ 19:59:56 Sessions 5 Manual Loads 0 Difficulty Rogue Special Mode None Game No. 276 Rogue 276 Adventurer 0 Explorer 0 Win Type - Total 13 Types 9/0/3/0/0/0/1/0/0/0 Lore% 82 Gallery% 75 Achievement% 55 Wizard Run 0 Options --------- Layout 0 ASCII 0 Keyboard 1 Movement Vi Keybinds 0 Fullscreen 2 Font 18/SmallcapsGlow Map View 76x50 Zoom Use 0% Tactical HUD 1 Map Filters NONE Filters NONE Steam 1 RUN: 01b7f1a0-f91d-4f91-a23f-ee1a7d0cb651